[Event "*** Titled Tuesday Blitz"]
[Site "Chess.com"]
[Date "2019.11.05"]
[Round "1"]
[White "FairChess_on_YouTube"]
[Black "shnitez"]
[Result "1-0"]
[WhiteElo "3029"]
[BlackElo "2523"]
[TimeControl "180+2"]
[EndTime "13:11:44 PST"]
[Termination "FairChess_on_YouTube won by resignation"]

1. e4 {[%clk 0:03:01.9]} 1... d6 {[%clk 0:02:25.8]} 2. d4 {[%clk 0:03:02.2]}
2... Nf6 {[%clk 0:02:26.7]} 3. f3 {[%clk 0:03:02]} 3... e5 {[%clk 0:02:24]} 4.
dxe5 {[%clk 0:03:02.8]} 4... dxe5 {[%clk 0:02:24.9]} 5. Qxd8+ {[%clk 0:03:04.2]}
5... Kxd8 {[%clk 0:02:26.8]} 6. Bc4 {[%clk 0:03:05.1]} 6... Ke8 {[%clk
0:02:21.1]} 7. Be3 {[%clk 0:03:05.4]} 7... Nbd7 {[%clk 0:02:12.4]} 8. Nc3 {[%clk
0:02:46.3]} 8... c6 {[%clk 0:02:08.7]} 9. a4 {[%clk 0:02:42.3]} 9... a5 {[%clk
0:02:03.7]} 10. Nge2 {[%clk 0:02:41.6]} 10... Bc5 {[%clk 0:02:03.3]} 11. Bd2
{[%clk 0:02:42.4]} 11... Nf8 {[%clk 0:02:00.6]} 12. Ng3 {[%clk 0:02:40.1]} 12...
Be6 {[%clk 0:01:58.1]} 13. Bxe6 {[%clk 0:02:39.9]} 13... Nxe6 {[%clk 0:01:58.2]}
14. O-O-O {[%clk 0:02:37.1]} 14... g6 {[%clk 0:01:54.5]} 15. Nce2 {[%clk
0:02:36.3]} 15... Ke7 {[%clk 0:01:48.9]} 16. Bc3 {[%clk 0:02:36.9]} 16... Nd7
{[%clk 0:01:43.4]} 17. Kb1 {[%clk 0:02:36]} 17... f6 {[%clk 0:01:40.3]} 18. Nc1
{[%clk 0:02:35.6]} 18... Bb4 {[%clk 0:01:37.3]} 19. Bxb4+ {[%clk 0:02:28.1]}
19... axb4 {[%clk 0:01:37.9]} 20. b3 {[%clk 0:02:29.7]} 20... Ndc5 {[%clk
0:01:35.7]} 21. Na2 {[%clk 0:02:28.6]} 21... Na6 {[%clk 0:01:31.4]} 22. Ne2
{[%clk 0:02:29.4]} 22... Rhd8 {[%clk 0:01:26.5]} 23. Nec1 {[%clk 0:02:30.3]}
23... c5 {[%clk 0:01:11.1]} 24. Nd3 {[%clk 0:02:30.1]} 24... Nac7 {[%clk
0:01:07.4]} 25. Nb2 {[%clk 0:02:27.6]} 25... b5 {[%clk 0:01:07.9]} 26. c4 {[%clk
0:02:15]} 26... bxc3 {[%clk 0:01:02.5]} 27. Nxc3 {[%clk 0:02:15.4]} 27... Nd4
{[%clk 0:01:00.3]} 28. axb5 {[%clk 0:02:11.9]} 28... Ndxb5 {[%clk 0:00:58.2]}
29. Nca4 {[%clk 0:02:06.4]} 29... Ne6 {[%clk 0:00:55.3]} 30. Rxd8 {[%clk
0:02:04.8]} 30... Rxd8 {[%clk 0:00:55.2]} 31. Rd1 {[%clk 0:02:06.3]} 31... Nbd4
{[%clk 0:00:49.8]} 32. Ka2 {[%clk 0:02:03.3]} 32... Rb8 {[%clk 0:00:50.5]} 33.
Rd3 {[%clk 0:01:46.7]} 33... Nf4 {[%clk 0:00:51]} 34. Rc3 {[%clk 0:01:47.4]}
34... Nxg2 {[%clk 0:00:49.7]} 35. Nxc5 {[%clk 0:01:46.7]} 35... Ne1 {[%clk
0:00:45.6]} 36. Ncd3 {[%clk 0:01:29.2]} 36... Nexf3 {[%clk 0:00:41.7]} 37. b4
{[%clk 0:01:30.3]} 37... Nd2 {[%clk 0:00:41.9]} 38. Rc7+ {[%clk 0:01:27.3]}
38... Kd6 {[%clk 0:00:40.7]} 39. Ra7 {[%clk 0:01:28.2]} 39... Nxe4 {[%clk
0:00:38.2]} 40. Nc4+ {[%clk 0:01:29.1]} 40... Ke6 {[%clk 0:00:38.7]} 41. Ra6+
{[%clk 0:01:28.3]} 41... Kf5 {[%clk 0:00:38.7]} 42. Ka3 {[%clk 0:01:22.4]} 42...
h5 {[%clk 0:00:35]} 43. h4 {[%clk 0:01:15.8]} 43... g5 {[%clk 0:00:30.4]} 44.
Ne3+ {[%clk 0:01:15.5]} 44... Kg6 {[%clk 0:00:28.4]} 45. Nxe5+ {[%clk
0:01:16.5]} 45... Kg7 {[%clk 0:00:26]} 46. Nc6 {[%clk 0:00:53.1]} 46... Nxc6
{[%clk 0:00:21.4]} 47. Rxc6 {[%clk 0:00:55]} 47... gxh4 {[%clk 0:00:21]} 48.
Nf5+ {[%clk 0:00:55.9]} 48... Kg6 {[%clk 0:00:21.2]} 49. Nxh4+ {[%clk
0:00:57.1]} 49... Kg5 {[%clk 0:00:22.9]} 50. Nf3+ {[%clk 0:00:58]} 50... Kf4
{[%clk 0:00:24.1]} 51. Nd4 {[%clk 0:00:45.1]} 51... h4 {[%clk 0:00:23.6]} 52.
Rc1 {[%clk 0:00:44.8]} 52... h3 {[%clk 0:00:23.9]} 53. Rf1+ {[%clk 0:00:45.7]}
53... Kg4 {[%clk 0:00:19.5]} 54. Rg1+ {[%clk 0:00:44.8]} 54... Kf4 {[%clk
0:00:16.9]} 55. Rf1+ {[%clk 0:00:45.7]} 55... Ke3 {[%clk 0:00:16.9]} 56. Nf5+
{[%clk 0:00:41.5]} 56... Ke2 {[%clk 0:00:17.8]} 57. Rf4 {[%clk 0:00:42.8]} 57...
Nd2 {[%clk 0:00:14.1]} 58. Rh4 {[%clk 0:00:40.3]} 58... Nf3 {[%clk 0:00:13.7]}
59. Rxh3 {[%clk 0:00:39.9]} 59... Ne5 {[%clk 0:00:12.6]} 60. b5 {[%clk
0:00:37.9]} 60... Nc4+ {[%clk 0:00:09.1]} 61. Kb4 {[%clk 0:00:37.7]} 61... Nd2
{[%clk 0:00:09.3]} 62. Re3+ {[%clk 0:00:33.8]} 62... Kf2 {[%clk 0:00:09.7]} 63.
Re6 {[%clk 0:00:35.2]} 63... Nf3 {[%clk 0:00:08.4]} 64. Rxf6 {[%clk 0:00:32.6]}
64... Ke2 {[%clk 0:00:09]} 65. Kc5 {[%clk 0:00:28]} 65... Kd3 {[%clk 0:00:09]}
66. Rd6+ {[%clk 0:00:26.2]} 66... Ke4 {[%clk 0:00:09.6]} 67. Ne7 {[%clk
0:00:25.5]} 67... Ne5 {[%clk 0:00:09.9]} 68. Nc6 {[%clk 0:00:23.4]} 68... Nd3+
{[%clk 0:00:07.8]} 69. Kc4 {[%clk 0:00:22.3]} 69... Nb2+ {[%clk 0:00:06.2]} 70.
Kb4 {[%clk 0:00:22.4]} 70... Nd3+ {[%clk 0:00:06.9]} 71. Ka5 {[%clk 0:00:20.8]}
71... Ra8+ {[%clk 0:00:07.1]} 72. Kb6 {[%clk 0:00:22.3]} 72... Ra1 {[%clk
0:00:08.6]} 73. Kc7 {[%clk 0:00:23.1]} 73... Rb1 {[%clk 0:00:09.3]} 74. b6
{[%clk 0:00:21.6]} 74... Nc5 {[%clk 0:00:10.3]} 75. Nb8 {[%clk 0:00:22.3]} 75...
Ke5 {[%clk 0:00:09.5]} 76. Nd7+ {[%clk 0:00:21.6]} 76... Nxd7 {[%clk 0:00:09.5]}
77. Rxd7 {[%clk 0:00:21.6]} 77... Ke6 {[%clk 0:00:10.4]} 78. Rh7 {[%clk
0:00:21.8]} 78... Rc1+ {[%clk 0:00:09.9]} 79. Kb8 {[%clk 0:00:22.1]} 79... Kd6
{[%clk 0:00:10.1]} 80. b7 {[%clk 0:00:23.2]} 80... Rb1 {[%clk 0:00:10.4]} 81.
Kc8 {[%clk 0:00:21.7]} 81... Rc1+ {[%clk 0:00:10.2]} 82. Kd8 {[%clk 0:00:22.9]}
82... Rb1 {[%clk 0:00:11.2]} 83. Rh6+ {[%clk 0:00:23.8]} 83... Kc5 {[%clk
0:00:12.4]} 84. Kc7 {[%clk 0:00:24.6]} 1-0

[Event "*** Titled Tuesday Blitz"]
[Site "Chess.com"]
[Date "2019.11.05"]
[Round "1"]
[White "TomasKapitanchuk"]
[Black "Jospem"]
[Result "1-0"]
[WhiteElo "2492"]
[BlackElo "2860"]
[TimeControl "180+2"]
[EndTime "13:12:07 PST"]
[Termination "TomasKapitanchuk won on time"]

1. e4 {[%clk 0:03:01.1]} 1... c5 {[%clk 0:03:01.2]} 2. Nf3 {[%clk 0:03:01.7]}
2... d6 {[%clk 0:03:02.8]} 3. Bb5+ {[%clk 0:03:03.1]} 3... Nd7 {[%clk
0:03:03.4]} 4. O-O {[%clk 0:03:03.4]} 4... a6 {[%clk 0:03:04.9]} 5. Bd3 {[%clk
0:03:04.3]} 5... Ngf6 {[%clk 0:03:06.1]} 6. Re1 {[%clk 0:03:04.9]} 6... e6
{[%clk 0:03:07.6]} 7. c3 {[%clk 0:03:06]} 7... b5 {[%clk 0:03:09]} 8. Bf1 {[%clk
0:03:05.1]} 8... Bb7 {[%clk 0:03:09.7]} 9. Qc2 {[%clk 0:03:02.6]} 9... Be7
{[%clk 0:03:09.2]} 10. a4 {[%clk 0:03:02.4]} 10... O-O {[%clk 0:03:09.3]} 11. d3
{[%clk 0:02:58.8]} 11... e5 {[%clk 0:03:07.2]} 12. Bg5 {[%clk 0:02:57.5]} 12...
Re8 {[%clk 0:03:08.2]} 13. Nbd2 {[%clk 0:02:57.7]} 13... h6 {[%clk 0:03:09.5]}
14. Bh4 {[%clk 0:02:56.7]} 14... Qb6 {[%clk 0:03:10.6]} 15. Bg3 {[%clk
0:02:47.1]} 15... Bf8 {[%clk 0:03:11.5]} 16. Nh4 {[%clk 0:02:47.4]} 16... g6
{[%clk 0:03:12.4]} 17. Kh1 {[%clk 0:02:47.1]} 17... Rac8 {[%clk 0:03:08.9]} 18.
Qd1 {[%clk 0:02:45.5]} 18... d5 {[%clk 0:03:08.1]} 19. Qf3 {[%clk 0:02:44.6]}
19... c4 {[%clk 0:03:06.3]} 20. axb5 {[%clk 0:02:41]} 20... axb5 {[%clk
0:03:04.4]} 21. Ra2 {[%clk 0:02:24]} 21... dxe4 {[%clk 0:02:58.3]} 22. dxe4
{[%clk 0:02:23.8]} 22... Bg7 {[%clk 0:02:59.4]} 23. Qe2 {[%clk 0:02:19.9]} 23...
Nc5 {[%clk 0:03:00.2]} 24. Qe3 {[%clk 0:02:18.3]} 24... Ng4 {[%clk 0:02:57.5]}
25. Qf3 {[%clk 0:02:16.3]} 25... Nf6 {[%clk 0:02:54.3]} 26. Qe3 {[%clk
0:02:06.5]} 26... Qc6 {[%clk 0:02:55.4]} 27. f3 {[%clk 0:02:06.5]} 27... Nh5
{[%clk 0:02:56]} 28. Bf2 {[%clk 0:02:06.9]} 28... Ne6 {[%clk 0:02:55.3]} 29. g3
{[%clk 0:02:05.7]} 29... Red8 {[%clk 0:02:56.8]} 30. Raa1 {[%clk 0:02:05.9]}
30... Bf8 {[%clk 0:02:57.2]} 31. Rad1 {[%clk 0:02:06.8]} 31... Bc5 {[%clk
0:02:58.2]} 32. Qe2 {[%clk 0:02:07.9]} 32... Be7 {[%clk 0:02:56.5]} 33. Be3
{[%clk 0:02:06.1]} 33... Bxh4 {[%clk 0:02:56.7]} 34. gxh4 {[%clk 0:02:08]} 34...
Nhf4 {[%clk 0:02:58.6]} 35. Qf2 {[%clk 0:02:07.7]} 35... h5 {[%clk 0:02:57.7]}
36. Nb1 {[%clk 0:02:08.3]} 36... Nd3 {[%clk 0:02:51]} 37. Bxd3 {[%clk
0:02:07.7]} 37... Rxd3 {[%clk 0:02:52.9]} 38. Rxd3 {[%clk 0:02:07.3]} 38... cxd3
{[%clk 0:02:54.8]} 39. Nd2 {[%clk 0:02:08]} 39... Qa6 {[%clk 0:02:52.6]} 40. Qg3
{[%clk 0:02:05.9]} 40... Qa2 {[%clk 0:02:35.3]} 41. Qxe5 {[%clk 0:02:02.7]}
41... Qxb2 {[%clk 0:02:34.6]} 42. Rg1 {[%clk 0:01:59.6]} 42... Qa2 {[%clk
0:02:19.7]} 43. Qxb5 {[%clk 0:01:53.6]} 43... Ba6 {[%clk 0:02:15.5]} 44. Qxh5
{[%clk 0:01:49.7]} 44... Rxc3 {[%clk 0:02:07.7]} 45. Qh6 {[%clk 0:01:36.7]}
45... Qa3 {[%clk 0:01:39.7]} 46. Nb1 {[%clk 0:01:17.3]} 46... Qb2 {[%clk
0:01:22.7]} 47. Nxc3 {[%clk 0:01:11.5]} 47... Qxc3 {[%clk 0:01:24.1]} 48. h5
{[%clk 0:01:02.2]} 48... Nf8 {[%clk 0:01:14]} 49. h4 {[%clk 0:00:54.3]} 49...
Qf6 {[%clk 0:01:14.1]} 50. Qf4 {[%clk 0:00:55.2]} 50... Qe6 {[%clk 0:01:11.7]}
51. Kh2 {[%clk 0:00:50.1]} 51... Bc8 {[%clk 0:01:12]} 52. Rg3 {[%clk 0:00:45.8]}
52... Qa2+ {[%clk 0:01:11.8]} 53. Rg2 {[%clk 0:00:46.5]} 53... Qe6 {[%clk
0:01:12.2]} 54. hxg6 {[%clk 0:00:47.4]} 54... Nxg6 {[%clk 0:01:13.6]} 55. Qf5
{[%clk 0:00:27]} 55... Qd6+ {[%clk 0:01:01]} 56. Bf4 {[%clk 0:00:27.9]} 56...
Qc6 {[%clk 0:00:52.2]} 57. Qg5 {[%clk 0:00:26.8]} 57... Qe6 {[%clk 0:00:45.5]}
58. h5 {[%clk 0:00:24]} 58... Qh3+ {[%clk 0:00:46.4]} 59. Kg1 {[%clk 0:00:25.4]}
59... d2 {[%clk 0:00:48.3]} 60. Bxd2 {[%clk 0:00:23.6]} 60... Qxf3 {[%clk
0:00:36.8]} 61. hxg6 {[%clk 0:00:24.7]} 61... Qd1+ {[%clk 0:00:38.1]} 62. Kh2
{[%clk 0:00:26]} 62... Be6 {[%clk 0:00:36.6]} 63. gxf7+ {[%clk 0:00:25.4]} 63...
Kxf7 {[%clk 0:00:38.5]} 64. Qg7+ {[%clk 0:00:21.2]} 64... Ke8 {[%clk 0:00:34.5]}
65. Qg6+ {[%clk 0:00:21.8]} 65... Kd7 {[%clk 0:00:35.7]} 66. Qg7+ {[%clk
0:00:21.4]} 66... Ke8 {[%clk 0:00:34.5]} 67. Qe5 {[%clk 0:00:21.2]} 67... Qb3
{[%clk 0:00:32.9]} 68. Rg6 {[%clk 0:00:20.9]} 68... Qh3+ {[%clk 0:00:30]} 69.
Kg1 {[%clk 0:00:21.1]} 69... Kd7 {[%clk 0:00:31.4]} 70. Qxe6+ {[%clk 0:00:21.4]}
70... Qxe6 {[%clk 0:00:33.3]} 71. Rxe6 {[%clk 0:00:23.3]} 71... Kxe6 {[%clk
0:00:35.2]} 72. Bc3 {[%clk 0:00:24.8]} 72... Kd6 {[%clk 0:00:36.3]} 73. Kf2
{[%clk 0:00:26.1]} 73... Kc5 {[%clk 0:00:38.2]} 74. Ke3 {[%clk 0:00:27.3]} 74...
Kc4 {[%clk 0:00:40.1]} 75. e5 {[%clk 0:00:26.8]} 75... Kc5 {[%clk 0:00:42]} 76.
Ke4 {[%clk 0:00:27.2]} 76... Kc6 {[%clk 0:00:43.9]} 77. Kf5 {[%clk 0:00:27.7]}
77... Kd7 {[%clk 0:00:45.8]} 78. Kf6 {[%clk 0:00:29.1]} 78... Ke8 {[%clk
0:00:47.7]} 79. Ke6 {[%clk 0:00:30.5]} 79... Kf8 {[%clk 0:00:49.6]} 80. Kd7
{[%clk 0:00:31.6]} 80... Kg8 {[%clk 0:00:51.5]} 81. e6 {[%clk 0:00:32.9]} 81...
Kf8 {[%clk 0:00:52.7]} 82. e7+ {[%clk 0:00:33.8]} 82... Kg8 {[%clk 0:00:54.6]}
83. e8=Q+ {[%clk 0:00:34.8]} 83... Kh7 {[%clk 0:00:56.5]} 84. Qh8+ {[%clk
0:00:34.8]} 84... Kg6 {[%clk 0:00:57.7]} 85. Qf6+ {[%clk 0:00:36.3]} 85... Kh5
{[%clk 0:00:58.8]} 86. Qg7 {[%clk 0:00:36.9]} 86... Kh4 {[%clk 0:00:59.7]} 87.
Ke6 {[%clk 0:00:38.1]} 87... Kh3 {[%clk 0:01:01]} 88. Kf5 {[%clk 0:00:39.4]}
88... Kh2 {[%clk 0:01:02.6]} 89. Kf4 {[%clk 0:00:40.7]} 89... Kh1 {[%clk
0:01:04]} 90. Kf3 {[%clk 0:00:40.7]} 1-0

[Event "*** Titled Tuesday Blitz"]
[Site "Chess.com"]
[Date "2019.11.05"]
[Round "1"]
[White "TomsKantans"]
[Black "ahkashefi2800"]
[Result "1-0"]
[WhiteElo "2591"]
[BlackElo "2196"]
[TimeControl "180+2"]
[EndTime "13:12:09 PST"]
[Termination "TomsKantans won by resignation"]

1. e4 {[%clk 0:03:01.3]} 1... c6 {[%clk 0:02:59.1]} 2. d4 {[%clk 0:02:55.8]}
2... d5 {[%clk 0:02:59.6]} 3. Nc3 {[%clk 0:02:48.5]} 3... dxe4 {[%clk
0:02:59.8]} 4. Nxe4 {[%clk 0:02:50.4]} 4... Nd7 {[%clk 0:02:46.1]} 5. Bc4 {[%clk
0:02:49.8]} 5... Ngf6 {[%clk 0:02:44.6]} 6. Ng5 {[%clk 0:02:50.4]} 6... e6
{[%clk 0:02:45.2]} 7. Qe2 {[%clk 0:02:50.9]} 7... Nb6 {[%clk 0:02:44.8]} 8. Bd3
{[%clk 0:02:51.8]} 8... h6 {[%clk 0:02:43.4]} 9. N5f3 {[%clk 0:02:52.6]} 9...
Bd6 {[%clk 0:02:43.5]} 10. Ne5 {[%clk 0:02:53]} 10... O-O {[%clk 0:02:43.6]} 11.
Ngf3 {[%clk 0:02:53.9]} 11... c5 {[%clk 0:02:44.1]} 12. dxc5 {[%clk 0:02:51.5]}
12... Bxc5 {[%clk 0:02:44.8]} 13. O-O {[%clk 0:02:52.4]} 13... Bd7 {[%clk
0:02:39.9]} 14. c4 {[%clk 0:02:52.5]} 14... Rc8 {[%clk 0:02:38.9]} 15. b3 {[%clk
0:02:52.4]} 15... Qe7 {[%clk 0:02:32.7]} 16. Bb2 {[%clk 0:02:52.9]} 16... Rfd8
{[%clk 0:02:31.1]} 17. Rad1 {[%clk 0:02:52.4]} 17... Ba3 {[%clk 0:02:30.9]} 18.
Ba1 {[%clk 0:02:53.1]} 18... Bc6 {[%clk 0:02:30.6]} 19. Nxc6 {[%clk 0:02:52.6]}
19... Rxc6 {[%clk 0:02:32.5]} 20. Bb1 {[%clk 0:02:31.9]} 20... Rcd6 {[%clk
0:02:28.2]} 21. Rxd6 {[%clk 0:02:32.1]} 21... Qxd6 {[%clk 0:02:27.4]} 22. Qc2
{[%clk 0:02:32.7]} 22... Qf4 {[%clk 0:02:16.4]} 23. Be5 {[%clk 0:02:25.4]} 23...
Qg4 {[%clk 0:02:03.5]} 24. Bxf6 {[%clk 0:01:46]} 24... gxf6 {[%clk 0:02:05.4]}
25. Qh7+ {[%clk 0:01:47.5]} 25... Kf8 {[%clk 0:02:06.2]} 26. Qxh6+ {[%clk
0:01:49]} 26... Ke7 {[%clk 0:02:06.8]} 27. h3 {[%clk 0:01:49.7]} 27... Qg8
{[%clk 0:02:01.1]} 28. Qe3 {[%clk 0:01:40.2]} 28... Rd7 {[%clk 0:01:39.2]} 29.
Nd4 {[%clk 0:01:37.2]} 29... Qg5 {[%clk 0:01:24.3]} 30. Nf5+ {[%clk 0:01:22.9]}
30... Kf8 {[%clk 0:01:23.6]} 31. f4 {[%clk 0:01:22]} 31... Qh5 {[%clk 0:01:18]}
32. Ng3 {[%clk 0:00:49.8]} 32... Qc5 {[%clk 0:01:09.8]} 33. Qxc5+ {[%clk
0:00:43.5]} 33... Bxc5+ {[%clk 0:01:11.7]} 34. Kh1 {[%clk 0:00:45.4]} 34... f5
{[%clk 0:01:12.5]} 35. Ne2 {[%clk 0:00:40.2]} 35... Rd2 {[%clk 0:01:06.5]} 36.
Nc3 {[%clk 0:00:41.6]} 36... Nd7 {[%clk 0:01:05.1]} 37. Rd1 {[%clk 0:00:40.1]}
37... Rxd1+ {[%clk 0:01:05.9]} 38. Nxd1 {[%clk 0:00:42]} 38... Bd4 {[%clk
0:01:07.1]} 39. g3 {[%clk 0:00:41.9]} 39... a6 {[%clk 0:01:04.9]} 40. Kg2 {[%clk
0:00:42.7]} 40... b5 {[%clk 0:01:06]} 41. Kf3 {[%clk 0:00:37]} 41... bxc4 {[%clk
0:01:06.4]} 42. bxc4 {[%clk 0:00:38.9]} 42... Nb6 {[%clk 0:01:06.8]} 43. Bd3
{[%clk 0:00:39.5]} 43... f6 {[%clk 0:01:03.5]} 44. c5 {[%clk 0:00:39.5]} 44...
Bxc5 {[%clk 0:01:02.6]} 45. Bxa6 {[%clk 0:00:40.7]} 45... Ba3 {[%clk 0:01:03.3]}
46. Nc3 {[%clk 0:00:40.5]} 46... Kf7 {[%clk 0:01:01.5]} 47. Ke2 {[%clk 0:00:30]}
47... Bc5 {[%clk 0:00:59.1]} 48. Bb5 {[%clk 0:00:28.8]} 48... Ba3 {[%clk
0:00:53.6]} 49. Kd3 {[%clk 0:00:28.4]} 49... e5 {[%clk 0:00:51.9]} 50. Kc2
{[%clk 0:00:23.9]} 50... e4 {[%clk 0:00:49.2]} 51. Ne2 {[%clk 0:00:21.5]} 51...
Bb4 {[%clk 0:00:40.7]} 52. a4 {[%clk 0:00:20.2]} 52... Be1 {[%clk 0:00:41.3]}
53. h4 {[%clk 0:00:20.7]} 53... Kg6 {[%clk 0:00:40]} 54. Be8+ {[%clk 0:00:21.1]}
54... Kh6 {[%clk 0:00:40.3]} 55. Kb3 {[%clk 0:00:22.2]} 55... Nd5 {[%clk
0:00:39.4]} 56. Kc4 {[%clk 0:00:21.5]} 56... Ne3+ {[%clk 0:00:40.4]} 57. Kb5
{[%clk 0:00:21.7]} 57... Nf1 {[%clk 0:00:42.3]} 58. a5 {[%clk 0:00:19.3]} 58...
Nxg3 {[%clk 0:00:42.7]} 59. a6 {[%clk 0:00:20.8]} 59... Nxe2 {[%clk 0:00:26.9]}
60. a7 {[%clk 0:00:21.7]} 60... Nd4+ {[%clk 0:00:27.7]} 61. Kc4 {[%clk
0:00:21.5]} 61... Ne6 {[%clk 0:00:17.2]} 62. a8=Q {[%clk 0:00:21.1]} 62... Bxh4
{[%clk 0:00:17]} 63. Bd7 {[%clk 0:00:19.3]} 63... Nxf4 {[%clk 0:00:17.2]} 64.
Bxf5 {[%clk 0:00:19.1]} 64... e3 {[%clk 0:00:16.7]} 65. Qe4 {[%clk 0:00:17.6]}
65... Kg5 {[%clk 0:00:17.7]} 66. Bd7 {[%clk 0:00:16.6]} 66... Ng6 {[%clk
0:00:07.6]} 67. Qxe3+ {[%clk 0:00:17.4]} 67... Kh5 {[%clk 0:00:07.1]} 68. Be8
{[%clk 0:00:17.9]} 68... f5 {[%clk 0:00:03.5]} 69. Qe6 {[%clk 0:00:16.5]} 69...
Bf6 {[%clk 0:00:02.3]} 70. Qxf6 {[%clk 0:00:15.7]} 70... Kg4 {[%clk 0:00:04.2]}
71. Bxg6 {[%clk 0:00:14.8]} 71... f4 {[%clk 0:00:04.9]} 72. Be4 {[%clk 0:00:16]}
72... Kh3 {[%clk 0:00:06.8]} 73. Kd4 {[%clk 0:00:14.4]} 73... f3 {[%clk
0:00:07.7]} 74. Qxf3+ {[%clk 0:00:15.3]} 74... Kh4 {[%clk 0:00:07.8]} 75. Qg2
{[%clk 0:00:17.2]} 1-0